fUST/lending_fUST_20250713
["ID","MTS","AMOUNT","RATE_DAILY","PERIOD"]
[371735102,1752407466366,-151.0,0.00022191,7]
[371735103,1752407466377,-151.0,0.00022191,7]
[371735104,1752407466386,-3031.54,0.00022191,2]
[371735105,1752407466396,-578.13,0.00022191,2]
[371735106,1752407466405,-540.94,0.00022191,2]
[371735107,1752407466414,-506.52,0.00022191,2]
[371735108,1752407466425,-1316.63,0.00022191,2]
[371735109,1752407466434,-1300.53,0.00022191,2]
[371735110,1752407466443,-671.75,0.00022191,2]
[371735111,1752407466452,-517.5,0.00022191,2]
[371735112,1752407466461,-1032.53,0.00022191,2]
[371735113,1752407466471,-748.97,0.00022191,2]
[371735114,1752407466481,-1550.69,0.00022191,2]
[371735115,1752407466490,-833.7,0.00022191,2]
[371735116,1752407466500,-151.73928,0.000222,7]
[371735117,1752407466509,-216.764323,0.00022214,7]
[371735118,1752407466518,-216.764323,0.00022214,7]
[371735119,1752407466528,-151.0,0.00022283,7]
[371735120,1752407466538,-4933.13375574,0.00022314,7]
[371735121,1752407466547,-179.58883,0.00022314,7]
[371735122,1752407466556,-151.0,0.00022314,7]
[371735123,1752407466565,-318.0,0.00022337,3]
[371735124,1752407466575,-318.0,0.00022337,3]
[371735125,1752407466585,-318.0,0.00022337,3]
[371735126,1752407466594,-318.0,0.00022337,3]
[371735127,1752407466605,-318.0,0.00022337,3]
[371735128,1752407466614,-318.0,0.00022337,3]
[371735129,1752407466624,-215.0738,0.00022344,2]
[371735130,1752407466633,-865.8,0.000224,7]
[371735131,1752407466642,-2650.39,0.000224,7]
[371735132,1752407466651,-154.818985,0.00022408,2]
[371735133,1752407466661,-495.85,0.00022465,2]
[371735134,1752407466671,-731.2,0.00022465,2]
[371735135,1752407466680,-714.42,0.00022465,2]
[371735136,1752407466690,-554.02,0.00022465,2]
[371735137,1752407466701,-596.85,0.00022465,2]
[371735138,1752407466711,-2829.27,0.00022465,2]
[371735139,1752407466721,-2270.21,0.00022465,2]
[371735140,1752407466731,-587.27,0.00022465,2]
[371735141,1752407466741,-565.36,0.00022465,2]
[371735142,1752407466751,-1536.42,0.00022465,2]
[371735143,1752407466762,-489.16,0.00022465,2]
[371735144,1752407466772,-704.31,0.00022465,2]
[371735145,1752407466782,-498.33,0.00022465,2]
[371735146,1752407466793,-246.529174,0.00022465,7]
[371735147,1752407466802,-246.529174,0.00022465,7]
[371735148,1752407466812,-764.91,0.00022465,2]
[371735149,1752407466822,-2968.39,0.00022465,2]
[371735150,1752407466832,-2262.14,0.00022465,2]
[371735151,1752407466842,-548.88,0.00022465,2]
[371735152,1752407466855,-1309.92,0.00022465,2]
[371735153,1752407466865,-955.79,0.00022465,2]
[371735154,1752407466875,-1127.57,0.00022465,2]
[371735155,1752407466885,-849.15,0.00022465,2]
[371735156,1752407466895,-500.48,0.00022465,2]
[371735157,1752407466904,-700.08,0.00022465,2]
[371735158,1752407466914,-3031.54,0.00022465,2]
[371735159,1752407466926,-578.13,0.00022465,2]
[371735160,1752407466938,-540.94,0.00022465,2]
[371735161,1752407466949,-506.52,0.00022465,2]
[371735162,1752407466960,-1316.63,0.00022465,2]
[371735163,1752407466970,-1300.53,0.00022465,2]
[371735164,1752407466980,-671.75,0.00022465,2]
[371735165,1752407466990,-517.5,0.00022465,2]
[371735166,1752407466999,-1032.53,0.00022465,2]
[371735167,1752407467010,-748.97,0.00022465,2]
[371735168,1752407467020,-1550.69,0.00022465,2]
[371735169,1752407467030,-833.7,0.00022465,2]
[371735170,1752407467040,-1467.57,0.000225,2]
[371735171,1752407467050,-160.0,0.000225,7]
[371735172,1752407467060,-12598.31844336,0.000225,7]
[371735173,1752407467071,-214.29528141,0.000225,7]
[371735174,1752407467081,-500.0,0.0002254,8]
[371735175,1752407467091,-4933.13375574,0.0002259,7]
[371735176,1752407467104,-151.0,0.000226,7]
[371735177,1752407467114,-151.0,0.000226,7]
[371735178,1752407467124,-151.0,0.000226,7]
[371735179,1752407467134,-174.194882,0.000226,7]
[371735180,1752407467143,-174.194882,0.000226,7]
[371735181,1752407467153,-151.0,0.000226,7]
[371735182,1752407467163,-372.756912,0.00022603,2]
[371735183,1752407467172,-1300.0,0.00022708,2]
[371735184,1752407467183,-154.818985,0.00022723,4]
[371735185,1752407467192,-151.0,0.00022739,7]
[371735186,1752407467201,-320.921408,0.00022739,7]
[371735187,1752407467210,-320.921408,0.00022739,7]
[371735188,1752407467220,-495.86,0.00022739,2]
[371735189,1752407467230,-731.23,0.00022739,2]
[371735190,1752407467242,-714.46,0.00022739,2]
[371735191,1752407467252,-554.12349346,0.00022739,2]
[371735192,1752407467262,-597.06,0.00022739,2]
[371735193,1752407467272,-2829.42013303,0.00022739,2]
[371735194,1752407467284,-2270.41,0.00022739,2]
[371735195,1752407467293,-587.39,0.00022739,2]
[371735196,1752407467301,-565.56,0.00022739,2]
[371735197,1752407467310,-1536.5,0.00022739,2]
[371735198,1752407467320,-489.3,0.00022739,2]
[371735199,1752407467330,-704.32,0.00022739,2]
[371735200,1752407467340,-498.41,0.00022739,2]
[371735201,1752407467351,-765.04,0.00022739,2]
[371735202,1752407467361,-2968.41,0.00022739,2]
[371735203,1752407467370,-2262.21,0.00022739,2]
[371735204,1752407467381,-548.89766755,0.00022739,2]
[371735205,1752407467391,-1309.98,0.00022739,2]
[371735206,1752407467400,-955.92,0.00022739,2]
[371735207,1752407467410,-1127.72,0.00022739,2]
[371735208,1752407467420,-849.2,0.00022739,2]
[371735209,1752407467429,-500.64,0.00022739,2]
[371735210,1752407467438,-700.18423799,0.00022739,2]
[371735211,1752407467448,-3031.71,0.00022739,2]
[371735212,1752407467458,-578.22974326,0.00022739,2]
[371735213,1752407467468,-541.11195447,0.00022739,2]
[371735214,1752407467478,-506.74412629,0.00022739,2]
[371735215,1752407467488,-1316.66,0.00022739,2]
[371735216,1752407467497,-1300.55504665,0.00022739,2]
[371735217,1752407467507,-671.84,0.00022739,2]
[371735218,1752407467517,-517.5,0.00022739,2]
[371735219,1752407467527,-1032.64645765,0.00022739,2]
[371735220,1752407467537,-749.17,0.00022739,2]
[371735221,1752407467547,-1550.86273704,0.00022739,2]
[371735222,1752407467557,-890.37013331,0.0002278,2]
[371735223,1752407467566,-151.0,0.00022865,7]
[371735224,1752407467576,-274.835429,0.00022865,7]
[371735225,1752407467586,-274.835429,0.00022865,7]
[371735226,1752407467596,-151.0,0.00022865,7]
[371735227,1752407467606,-4933.13375574,0.00022866,8]
[371735228,1752407467616,-174.2119528,0.00023,14]
[371735229,1752407467625,-160.0,0.00023,3]
[371735230,1752407467708,-160.0,0.00023,3]
[371735231,1752407467718,-838.53376533,0.00023,3]
[371735232,1752407467727,-151.0,0.00023,7]
[371735233,1752407467737,-275.434605,0.00023,7]
[371735234,1752407467746,-275.434605,0.00023,7]
[371735235,1752407467756,-151.0,0.00023,7]
[371735236,1752407467765,-522.194281,0.00023,7]
[371735237,1752407467782,-522.194281,0.00023,7]
[371735238,1752407467796,-5000.0,0.00023,21]
[371735239,1752407467806,-215.42595214,0.00023,3]
[371735240,1752407467817,-160.0,0.00023,3]
[371735241,1752407467827,-160.0,0.00023,3]
[371735242,1752407467838,-230.68503973,0.00023,3]
[371735243,1752407467848,-171.0,0.00023014,7]
[371735244,1752407467862,-910.43835786,0.00023074,10]
[371735245,1752407467872,-151.0,0.00023107,7]
[371735246,1752407467882,-151.0,0.00023141,7]
[371735247,1752407467893,-4933.13375574,0.00023141,8]
[371735248,1752407467903,-17379.31,0.000232,2]
[371735249,1752407467913,-910.43835786,0.00023305,10]
[371735250,1752407467923,-4933.13375574,0.00023417,9]
[371735251,1752407467935,-788.0,0.00023446,2]
[371735252,1752407467946,-500.0,0.00023457,2]
[371735253,1752407467955,-151.0,0.00023474,7]
[371735254,1752407467966,-151.0,0.00023474,7]
[371735255,1752407467976,-160.0,0.0002349,5]
[371735256,1752407467986,-910.43835786,0.00023536,10]
[371735257,1752407467996,-151.0,0.00023543,6]
[371735258,1752407468006,-2650.39,0.000236,7]
[371735259,1752407468016,-151.0,0.000236,6]
[371735260,1752407468026,-201.251957,0.00023693,7]
[371735261,1752407468036,-201.251957,0.00023693,7]
[371735262,1752407468046,-151.0,0.00023693,7]
[371735263,1752407468057,-151.0,0.00023693,7]
[371735264,1752407468067,-4933.13375574,0.00023693,9]
[371735265,1752407468077,-865.8,0.000237,7]
[371735266,1752407468087,-223.0315306,0.00023713,2]
[371735267,1752407468097,-455.10065131,0.00023766,12]
[371735268,1752407468108,-800.0,0.00023847,2]
[371735269,1752407468119,-367.95531876,0.000239,2]
[371735270,1752407468129,-4933.13375574,0.00023969,10]
[371735271,1752407468139,-151.0,0.00023979,7]
[371735272,1752407468149,-4546.08095221,0.00024,3]
[371735273,1752407468160,-152.0,0.00024,2]
[371735274,1752407468170,-2000.0,0.00024,2]
[371735275,1752407468180,-18358.79576156,0.00024,10]
[371735276,1752407468190,-151.0,0.00024,7]
[371735277,1752407468200,-151.0,0.00024,7]
[371735278,1752407468211,-223.745428,0.00024,2]
[371735279,1752407468221,-223.745428,0.00024,2]
[371735280,1752407468230,-160.0,0.00024,7]
[371735281,1752407468240,-838.53376533,0.00024,7]
[371735282,1752407468250,-838.53376533,0.00024,10]
[371735283,1752407468260,-151.0,0.00024,7]
[371735284,1752407468269,-151.0,0.00024,7]
[371735285,1752407468279,-151.0,0.00024,7]
[371735286,1752407468288,-151.0,0.00024,3]
[371735287,1752407468298,-151.0,0.00024,3]
[371735288,1752407468307,-216.764323,0.00024,7]
[371735289,1752407468317,-216.764323,0.00024,7]
[371735290,1752407468326,-196.217803,0.00024,7]
[371735291,1752407468336,-320.921408,0.00024,7]
[371735292,1752407468345,-320.921413,0.00024,7]
[371735293,1752407468355,-1000.0,0.00024,2]
[371735294,1752407468364,-214.29528141,0.00024,10]
[371735295,1752407468374,-246.529174,0.00024,7]
[371735296,1752407468383,-246.529174,0.00024,7]
[371735297,1752407468393,-160.0,0.00024,7]
[371735298,1752407468407,-160.0,0.00024,7]
[371735299,1752407468418,-230.68503973,0.00024,7]
[371735300,1752407468429,-230.68503973,0.00024,10]
[371735301,1752407468439,-261.0,0.0002411,12]
[371735302,1752407468450,-1904.69041535,0.00024116,2]
[371735303,1752407468461,-205.0,0.0002424,2]
[371735304,1752407468472,-4933.13375574,0.00024245,10]
[371735305,1752407468482,-217.15205971,0.00024357,2]
[371735306,1752407468702,-460.0,0.00016438,2]
[371735307,1752407468712,-140.0,0.00016438,2]
[371735308,1752407468725,-320.0,0.00016438,2]
[371735309,1752407468734,-431.0,0.00016712,2]
[371735310,1752407469008,-460.0,0.00016438,2]
[371735311,1752407469019,-460.0,0.00016438,2]
[371735312,1752407469028,-100.55924771,0.00016438,2]
[371735313,1752407469039,-359.44075229,0.00016438,2]
[371735314,1752407469049,-460.0,0.00016438,2]
[371735315,1752407469058,-460.0,0.00016438,2]
[371735316,1752407469068,-29.0,0.00016712,2]
[371735317,1752407469078,-460.0,0.00016712,2]
[371735318,1752407469087,-405.46631178,0.00016712,2]
[371735320,1752407706255,479.133571,0.00013699,2]
[371735321,1752407766435,24900.0,0.00015532,2]
[371735323,1752408192495,12751.8722125,0.00015435,2]
[371735324,1752408242136,158.62891,0.00015559,2]
[371735325,1752408242245,158.62891,0.00015559,120]
[371735326,1752408262753,199.93912891,0.00015607,2]
[371735327,1752408285438,197.8556998,0.00015472,2]
[371735328,1752408311061,-153.9,0.000245,31]
[371735329,1752408311090,-153.9,0.000245,31]
[371735330,1752408311118,-153.9,0.000245,31]
[371735331,1752408311149,-153.9,0.000245,31]
[371735332,1752408311177,-153.9,0.000245,31]
[371735333,1752408311205,-153.9,0.000245,31]
[371735334,1752408311235,-153.9,0.000245,31]
[371735335,1752408311262,-153.9,0.000245,31]
[371735336,1752408311291,-153.9,0.000245,31]
[371735337,1752408311319,-153.9,0.000245,31]
[371735338,1752408311347,-153.9,0.000245,31]
[371735339,1752408311375,-153.9,0.000245,31]
[371735340,1752408311402,-153.9,0.000245,31]
[371735341,1752408311430,-153.9,0.000245,31]
[371735342,1752408311467,-153.9,0.00025,31]
[371735343,1752408311496,-153.9,0.00025,31]
[371735344,1752408311525,-153.9,0.00025,31]
[371735345,1752408311555,-153.9,0.00025,31]
[371735346,1752408311584,-153.9,0.00025,31]
[371735347,1752408311612,-153.9,0.00025,31]
[371735348,1752408311639,-153.9,0.00025,31]
[371735349,1752408311666,-153.9,0.00025,31]
[371735350,1752408311693,-153.9,0.00025,31]
[371735351,1752408311721,-153.9,0.00025,31]
[371735352,1752408311749,-153.9,0.00025,31]
[371735353,1752408311777,-153.9,0.00025,31]
[371735354,1752408311805,-153.9,0.00025,31]
[371735355,1752408311834,-153.9,0.00025,31]
[371735356,1752408324274,-200.0,0.00024658,15]
[371735357,1752408324313,-59269.64735107,0.00025,20]
[371735358,1752408356408,-151.0,0.000222,10]
[371735359,1752408356435,-910.46571232,0.00022711,10]
[371735360,1752408356460,-910.46571232,0.00022938,10]
[371735361,1752408356484,-910.46571232,0.00023165,10]
[371735362,1752408356508,-910.46571232,0.00023392,10]
[371735363,1752408356532,-910.46571232,0.00023619,10]
[371735364,1752408356556,-1062.2099977,0.00023846,12]
[371735365,1752408356584,-4933.13375574,0.00024038,10]
[371735366,1752408356608,-273.15877861,0.00024074,12]
[371735367,1752408356632,-261.0,0.0002411,12]
[371735368,1752408356658,-154.818985,0.00024245,10]
[371735369,1752408356686,-4933.13375574,0.00024348,11]
[371735370,1752408356716,-4933.13375574,0.00024659,11]
[371735371,1752408356747,-4933.13375574,0.00024969,12]
[371735372,1752408356770,-1000.0,0.00024999,10]
[371735373,1752408356793,-1000.0,0.00024999,10]
[371735374,1752408356816,-1000.0,0.00024999,10]
[371735375,1752408356839,-836.956561,0.00024999,10]
[371735376,1752408356863,-2644.0,0.00025,10]
[371735377,1752408356885,-1013.63140625,0.00025,10]
[371735378,1752408356908,-500.0,0.00025,12]
[371735379,1752408356935,-12598.31844336,0.00025,10]
[371735380,1752408356960,-214.29528141,0.00025,10]
[371735381,1752408356984,-230.68503973,0.00025,10]
[371735382,1752408379265,-200.0,0.00025249,30]
[371735383,1752408379298,-200.0,0.00025249,30]
[371735384,1752408379333,-4933.13375574,0.00025279,12]
[371735385,1752408379364,-4933.13375574,0.0002559,13]
[371735386,1752408379398,-153.9,0.000256,31]
[371735387,1752408379430,-153.9,0.000256,31]
[371735388,1752408379472,-153.9,0.000256,31]
[371735389,1752408379501,-153.9,0.000256,31]
[371735390,1752408379528,-153.9,0.000256,31]
[371735391,1752408379555,-153.9,0.000256,31]
[371735392,1752408379581,-153.9,0.000256,31]
[371735393,1752408379609,-153.9,0.000256,31]
[371735394,1752408379638,-153.9,0.000256,31]
[371735395,1752408379666,-153.9,0.000256,31]
[371735396,1752408379694,-153.9,0.000256,31]
[371735397,1752408379723,-153.9,0.000256,31]
[371735398,1752408379752,-153.9,0.000256,31]
[371735399,1752408379781,-153.9,0.000256,31]
[371735400,1752408379805,-180.0,0.000258,10]
[371735401,1752408379833,-4933.13375574,0.000259,14]
[371735402,1752408379857,-38635.17607203,0.00026,10]
[371735403,1752408379882,-160.0,0.00026,10]
[371735404,1752408379909,-215.21338352,0.00026,10]
[371735405,1752408379932,-160.0,0.00026,10]
[371735406,1752408379957,-838.53376533,0.00026,30]
[371735407,1752408379981,-12598.31844336,0.00026,30]
[371735408,1752408380006,-214.29528141,0.00026,30]
[371735409,1752408380037,-153.9,0.000261,31]
[371735410,1752408380066,-153.9,0.000261,31]
[371735411,1752408380094,-153.9,0.000261,31]
[371735412,1752408380122,-153.9,0.000261,31]
[371735413,1752408380152,-153.9,0.000261,31]
[371735414,1752408380181,-153.9,0.000261,31]
[371735415,1752408380212,-153.9,0.000261,31]
[371735416,1752408380242,-153.9,0.000261,31]
[371735417,1752408380270,-153.9,0.000261,31]
[371735418,1752408380300,-153.9,0.000261,31]
[371735419,1752408380331,-153.9,0.000261,31]
[371735420,1752408380359,-153.9,0.000261,31]
[371735421,1752408380388,-153.9,0.000261,31]
[371735422,1752408380416,-153.9,0.000261,31]
[371735423,1752408380441,-500.0,0.00026204,15]
[371735424,1752408380464,-500.0,0.00026204,10]
[371735425,1752408380489,-500.0,0.00026508,10]
[371735426,1752408380512,-500.0,0.00026508,15]
[371735427,1752408380536,-500.0,0.00026508,15]
[371735428,1752408380559,-500.0,0.00026508,10]
[371735429,1752408380582,-500.0,0.00026508,10]
[371735430,1752408380605,-500.0,0.00026508,15]
[371735431,1752408380629,-180.0,0.000266,11]
[371735432,1752408380659,-153.9,0.000266,31]
[371735433,1752408380690,-153.9,0.000266,31]
[371735434,1752408380722,-153.9,0.000266,31]
[371735435,1752408380750,-153.9,0.000266,31]
[371735436,1752408380779,-153.9,0.000266,31]
[371735437,1752408380808,-153.9,0.000266,31]
[371735438,1752408380836,-153.9,0.000266,31]
[371735439,1752408380862,-14000.0,0.000269,10]
[371735440,1752408380887,-215.21338352,0.00027,10]
[371735441,1752408380911,-2711.47247018,0.00027,50]
[371735442,1752408380934,-2043.0,0.00027,60]
[371735443,1752408380966,-5213.25,0.00027397,14]
[371735444,1752408380990,-500.0,0.00027397,10]
[371735445,1752408381014,-500.0,0.00027397,10]
[371735446,1752408381038,-500.0,0.00027397,10]
[371735447,1752408381062,-196.23,0.00027397,15]
[371735448,1752408381086,-500.0,0.00027397,10]
[371735449,1752408381109,-500.0,0.00027397,15]
[371735450,1752408381132,-500.0,0.00027397,15]
[371735451,1752408381156,-500.0,0.00027397,15]
[371735452,1752408381180,-500.0,0.00027397,10]
[371735453,1752408381205,-500.0,0.00027397,15]
[371735454,1752408381230,-500.0,0.00027397,15]
[371735455,1752408381254,-500.0,0.00027397,10]
[371735456,1752408381278,-500.0,0.00027397,10]
[371735457,1752408381304,-500.0,0.00027397,15]
[371735458,1752408381327,-500.0,0.00027397,15]
[371735459,1752408381351,-404.02,0.00027397,15]
[371735460,1752408381375,-174.0,0.00027397,24]
[371735461,1752408381398,-180.0,0.000274,12]
[371735462,1752408381421,-151.32708239,0.00027403,120]
[371735463,1752408381444,-800.15,0.00027431,27]
[371735464,1752408381468,-800.15,0.00027531,26]
[371735465,1752408381492,-624.57524,0.000276,120]
[371735466,1752408381516,-1408.14,0.00027602,23]
[371735467,1752408381539,-800.15,0.00027631,18]
[371735468,1752408381561,-1408.14,0.00027702,13]
[371735469,1752408381584,-800.15,0.00027731,20]
[371735470,1752408381611,-800.15,0.00027831,26]
[371735471,1752408381656,-624.57524,0.000279,120]
[371735472,1752408381681,-800.15,0.00027931,25]
[371735473,1752408381704,-500.0,0.00028,14]
[371735474,1752408381728,-800.15,0.00028031,18]
[371735475,1752408381752,-800.15,0.00028131,16]
[371735476,1752408381775,-624.57524,0.000282,120]
[371735477,1752408381799,-800.15,0.00028231,29]
[371735478,1752408381823,-800.15,0.00028331,22]
[371735479,1752408381848,-624.57524,0.000285,120]
[371735480,1752408381874,-369.78,0.000285,120]
[371735481,1752408381898,-2105.077287,0.000285,60]
[371735482,1752408381926,-800.15,0.00028531,12]
[371735483,1752408381952,-800.15,0.00028631,17]
[371735484,1752408381983,-800.15,0.00028731,16]
[371735485,1752408382034,-624.57524,0.000288,120]
[371735486,1752408382059,-800.15,0.00028831,26]
[371735487,1752408382083,-361.46507,0.00029,120]
[371735488,1752408382107,-800.15,0.00029031,16]
[371735489,1752408382263,-624.57524,0.000291,120]
[371735490,1752408382288,-800.15,0.00029131,17]
[371735491,1752408382312,-800.15,0.00029231,10]
[371735492,1752408382336,-800.15,0.00029331,28]
[371735493,1752408382360,-624.57525,0.000294,120]
[371735494,1752408382384,-361.46507,0.000295,120]
[371735495,1752408382408,-800.15,0.00029531,18]
[371735496,1752408382432,-800.15,0.00029631,16]
[371735497,1752408382455,-187206.12202983,0.00029677,20]
[371735498,1752408382479,-800.15,0.00029731,17]
[371735499,1752408382503,-800.15,0.00029831,18]
[371735500,1752408382527,-800.15,0.00029931,25]
[371735501,1752408382550,-401.84056144,0.0003,10]
[371735502,1752408382576,-8162.79164282,0.0003,10]
[371735503,1752408382600,-1560.23803967,0.0003,10]
[371735504,1752408382624,-500.0,0.0003,14]
[371735505,1752408382647,-500.0,0.0003,14]
[371735506,1752408382672,-500.0,0.0003,14]
[371735507,1752408382696,-500.0,0.0003,14]
[371735508,1752408382719,-500.0,0.0003,14]
[371735509,1752408382743,-500.0,0.0003,14]
[371735510,1752408382768,-500.0,0.0003,14]
[371735511,1752408382792,-500.0,0.0003,14]
[371735512,1752408382814,-500.0,0.0003,14]
[371735513,1752408382837,-165.46,0.0003,10]
[371735514,1752408382862,-1303.14983399,0.0003,10]
[371735515,1752408382884,-21630.62172992,0.0003,10]
[371735516,1752408382908,-300.0,0.0003,14]
[371735517,1752408382930,-361.46507,0.0003,120]
[371735518,1752408382953,-90258.0,0.0003,30]
[371735519,1752408382979,-1999.99999902,0.0003,60]
[371735520,1752408383003,-1010.0,0.0003,120]
[371735521,1752408383027,-1000.0,0.0003,120]
[371735522,1752408383051,-200.0,0.0003,120]
[371735523,1752408383074,-98841.0,0.0003,30]
[371735524,1752408383097,-6610.6270064,0.0003,120]
[371735525,1752408383120,-525.37265586,0.0003,120]
[371735527,1752408446700,3782.06921273,0.00024038,10]
[371735528,1752408446788,3782.06921273,0.00024348,11]
[371735529,1752408446885,3782.06921273,0.00024659,11]
[371735530,1752408447220,3782.06921273,0.00024969,12]
[371735531,1752408447311,3782.06921273,0.00025279,12]
[371735532,1752408447401,3782.06921273,0.0002559,13]
[371735533,1752408447471,3782.06921273,0.000259,14]
[371735534,1752408461034,455.20550254,0.0002985,24]
[371735637,1752408558029,525.37265586,0.00028,10]
[371735638,1752408558435,525.37265586,0.00028,10]
[371735640,1752408565135,239.92695469,0.00015847,2]
[371735641,1752408607742,2899.58639643,0.00024038,10]
[371735642,1752408607890,2899.58639643,0.00024348,11]
[371735643,1752408608216,2899.58639643,0.00024659,11]
[371735644,1752408608313,2899.58639643,0.00024969,12]
[371735645,1752408608407,2899.58639643,0.00025279,12]
[371735646,1752408608499,2899.58639643,0.0002559,13]
[371735647,1752408608611,2899.58639643,0.000259,14]
[371735695,1752408639155,-211.1332636,0.00016328,2]
[371735696,1752408639165,-211.1332636,0.00016333,2]
[371735697,1752408639175,-300.0,0.00016336,2]
[371735698,1752408639184,-300.0,0.00016336,2]
[371735699,1752408639194,-300.0,0.00016336,2]
[371735700,1752408639203,-208.0,0.00016336,2]
[371735701,1752408639213,-10151.15662086,0.00016337,2]
[371735702,1752408639223,-500.0,0.00016338,2]
[371735703,1752408639233,-2770.38015596,0.00016338,2]
[371735704,1752408639242,-211.1332636,0.00016338,2]
[371735705,1752408639252,-17659.07792108,0.00016338,2]
[371735706,1752408639262,-50000.0,0.00016428,2]
[371735707,1752408639270,-871.48,0.00016428,3]
[371735708,1752408639280,-435.74,0.00016428,3]
[371735709,1752408639290,-217.87,0.00016428,3]
[371735710,1752408639300,-653.66,0.00016428,3]
[371735711,1752408639310,-460.0,0.00016438,2]
[371735712,1752408639319,-460.0,0.00016438,2]
[371735713,1752408639329,-460.0,0.00016438,2]
[371735714,1752408639338,-460.0,0.00016438,2]
[371735715,1752408639348,-460.0,0.00016438,2]
[371735716,1752408639357,-460.0,0.00016438,2]
[371735717,1752408639367,-460.0,0.00016438,2]
[371735718,1752408639381,-460.0,0.00016438,2]
[371735719,1752408639390,-460.0,0.00016438,2]
[371735720,1752408639400,-458.15983066,0.00016438,2]
[371735721,1752408639410,-460.0,0.00016438,2]
[371735722,1752408639419,-460.0,0.00016438,2]
[371735723,1752408639428,-460.0,0.00016438,2]
[371735724,1752408639441,-460.0,0.00016438,2]
[371735725,1752408639450,-460.0,0.00016438,2]
[371735726,1752408639460,-508.45,0.00016438,2]
[371735727,1752408639469,-179.11536866,0.00016438,2]
[371735728,1752408639479,-460.0,0.00016438,2]
[371735729,1752408639488,-460.0,0.00016438,2]
[371735730,1752408639497,-460.0,0.00016438,2]
[371735731,1752408639507,-460.0,0.00016438,2]
[371735732,1752408639517,-460.0,0.00016438,2]
[371735733,1752408639526,-356.47296819,0.00016438,2]
[371735734,1752408639536,-460.0,0.00016438,2]
[371735735,1752408639545,-460.0,0.00016438,2]
[371735736,1752408639555,-463.82926034,0.00016438,2]
[371735737,1752408639564,-500.0,0.00016438,2]
[371735738,1752408639574,-500.0,0.00016438,2]
[371735739,1752408639583,-460.0,0.00016438,2]
[371735740,1752408639596,-460.0,0.00016438,2]
[371735741,1752408639605,-460.0,0.00016438,2]
[371735742,1752408639615,-460.0,0.00016438,2]
[371735743,1752408639624,-460.0,0.00016438,2]
[371735744,1752408639634,-460.0,0.00016438,2]
[371735745,1752408639643,-460.0,0.00016438,2]
[371735746,1752408639653,-460.0,0.00016438,2]
[371735747,1752408639663,-460.0,0.00016438,2]
[371735748,1752408639672,-202.67426909,0.00016438,2]
[371735749,1752408639681,-460.0,0.00016438,2]
[371735750,1752408639690,-460.0,0.00016438,2]
[371735751,1752408639699,-460.0,0.00016438,2]
[371735752,1752408639709,-150.55855783,0.00016438,2]
[371735753,1752408639718,-460.0,0.00016438,2]
[371735754,1752408639728,-460.97652801,0.00016438,2]